fUSD/lending_fUSD_20240220
["ID","MTS","AMOUNT","RATE_DAILY","PERIOD"]
[314623793,1708463434593,-8059.67311308,0.0004,30]
[314623794,1708463434602,-10229.07616071,0.0004,7]
[314623795,1708463434611,-1651.0,0.0004,5]
[314623796,1708463434620,-403.23887104,0.0004,2]
[314623797,1708463434629,-403.23887104,0.0004,2]
[314623798,1708463434638,-403.23887104,0.0004,2]
[314623799,1708463434647,-403.23887104,0.0004,2]
[314623800,1708463434656,-403.23887104,0.0004,2]
[314623801,1708463434665,-403.23887104,0.0004,2]
[314623802,1708463434674,-403.23887104,0.0004,2]
[314623803,1708463434684,-403.23887104,0.0004,2]
[314623804,1708463434694,-403.23887104,0.0004,2]
[314623805,1708463434703,-403.23887104,0.0004,2]
[314623806,1708463434713,-403.23887104,0.0004,2]
[314623807,1708463434723,-403.23887104,0.0004,2]
[314623808,1708463434733,-403.23887104,0.0004,2]
[314623809,1708463434744,-403.23887104,0.0004,2]
[314623810,1708463434754,-403.23887104,0.0004,2]
[314623811,1708463434764,-403.23887104,0.0004,2]
[314623812,1708463434773,-403.23887104,0.0004,2]
[314623813,1708463434783,-403.23887104,0.0004,2]
[314623814,1708463434793,-403.23887104,0.0004,2]
[314623815,1708463434802,-403.23887104,0.0004,2]
[314623816,1708463434811,-403.23887104,0.0004,2]
[314623817,1708463434820,-403.23887104,0.0004,2]
[314623818,1708463434830,-403.23887104,0.0004,2]
[314623819,1708463434839,-403.23887104,0.0004,2]
[314623820,1708463434849,-403.23887104,0.0004,2]
[314623821,1708463434858,-403.23887104,0.0004,2]
[314623822,1708463434867,-403.23887104,0.0004,2]
[314623823,1708463434876,-403.23887104,0.0004,2]
[314623824,1708463434885,-403.23887104,0.0004,2]
[314623825,1708463434895,-403.23887104,0.0004,2]
[314623826,1708463434904,-403.23887104,0.0004,2]
[314623827,1708463434913,-403.23887104,0.0004,2]
[314623828,1708463434922,-403.23887104,0.0004,2]
[314623829,1708463434932,-403.23887104,0.0004,2]
[314623830,1708463434941,-403.23887104,0.0004,2]
[314623831,1708463434951,-403.23887104,0.0004,2]
[314623832,1708463434962,-403.23887104,0.0004,2]
[314623833,1708463434971,-403.23887104,0.0004,2]
[314623834,1708463434980,-403.23887104,0.0004,2]
[314623835,1708463434990,-403.23887104,0.0004,2]
[314623836,1708463434999,-403.23887104,0.0004,2]
[314623837,1708463435009,-403.23887104,0.0004,2]
[314623838,1708463435018,-403.23887104,0.0004,2]
[314623839,1708463435028,-403.23887104,0.0004,2]
[314623840,1708463435038,-403.23887104,0.0004,2]
[314623841,1708463435049,-403.23887104,0.0004,2]
[314623842,1708463435059,-403.23887104,0.0004,2]
[314623843,1708463435071,-403.23887104,0.0004,2]
[314623844,1708463435081,-403.23887104,0.0004,2]
[314623845,1708463435090,-403.23887104,0.0004,2]
[314623846,1708463435100,-403.23887104,0.0004,2]
[314623847,1708463435110,-403.23887104,0.0004,2]
[314623848,1708463435120,-403.23887104,0.0004,2]
[314623849,1708463435129,-403.23887104,0.0004,2]
[314623850,1708463435140,-403.23887104,0.0004,2]
[314623851,1708463435149,-403.23887104,0.0004,2]
[314623852,1708463435159,-403.23887104,0.0004,2]
[314623853,1708463435170,-7605.59782445,0.00040122,2]
[314623854,1708463435180,-168.29,0.00040173,2]
[314623855,1708463435190,-153.77,0.00040271,2]
[314623856,1708463435199,-2554.3813699,0.00040282,2]
[314623857,1708463435210,-206.0,0.00040488,15]
[314623858,1708463435220,-2000.0,0.000405,2]
[314623859,1708463435230,-1044.45,0.000405,7]
[314623860,1708463435240,-1247.68,0.000405,7]
[314623861,1708463435249,-160.1268506,0.0004052,2]
[314623862,1708463435259,-1000.0,0.000406,15]
[314623863,1708463435270,-1198.89,0.000406,4]
[314623864,1708463435280,-1198.89,0.000406,4]
[314623865,1708463435289,-1198.89,0.000406,4]
[314623866,1708463435299,-1198.89,0.000406,4]
[314623867,1708463435309,-1198.89,0.000406,4]
[314623868,1708463435322,-1198.89,0.000406,4]
[314623869,1708463435332,-1198.89,0.000406,4]
[314623870,1708463435341,-1198.89,0.000406,4]
[314623871,1708463435351,-1198.89,0.000406,4]
[314623872,1708463435361,-1198.89,0.000406,4]
[314623873,1708463435371,-1198.89,0.000406,4]
[314623874,1708463435381,-1198.89,0.000406,4]
[314623875,1708463435390,-1198.89,0.000406,4]
[314623876,1708463435401,-1198.89,0.000406,4]
[314623877,1708463435411,-1198.89,0.000406,4]
[314623878,1708463435421,-1198.89,0.000406,4]
[314623879,1708463435431,-1198.89,0.000406,4]
[314623880,1708463435441,-1198.89,0.000406,4]
[314623881,1708463435450,-1198.89,0.000406,4]
[314623882,1708463435459,-1198.89,0.000406,4]
[314623883,1708463435468,-153.2,0.000406,4]
[314623884,1708463435477,-152.59094759,0.00040673,9]
[314623885,1708463435487,-555.644053,0.000407,34]
[314623886,1708463435497,-333.13,0.000407,2]
[314623887,1708463435507,-314.55,0.00040733,2]
[314623888,1708463435517,-153.77,0.00040942,2]
[314623889,1708463435526,-151.0,0.00040943,2]
[314623890,1708463435536,-622.14,0.00040964,2]
[314623891,1708463435545,-17979.65665844,0.00040965,3]
[314623892,1708463435554,-219.64613294,0.00041021,120]
[314623893,1708463435563,-1234.84823155,0.00041021,2]
[314623894,1708463435572,-1727.001711,0.00041021,30]
[314623895,1708463435582,-150.0,0.00041021,30]
[314623896,1708463435591,-25806.7771158,0.00041216,19]
[314623897,1708463435600,-13287.97773798,0.00041216,14]
[314623898,1708463435609,-1278.65006281,0.00041216,8]
[314623899,1708463435619,-15046.78418124,0.00041216,16]
[314623900,1708463435628,-1586.29,0.00041319,2]
[314623901,1708463435637,-531.05350349,0.00041385,2]
[314623902,1708463435647,-150.0,0.00041487,2]
[314623903,1708463435657,-377.86,0.00041539,2]
[314623904,1708463435666,-152.59094759,0.0004161,12]
[314623905,1708463435676,-153.77,0.00041613,2]
[314623906,1708463435685,-154.43,0.00041672,2]
[314623907,1708463435695,-420.44,0.00041689,2]
[314623908,1708463435704,-1044.45,0.000417,7]
[314623909,1708463435714,-1247.68,0.000417,7]
[314623910,1708463435723,-986.32,0.00042092,15]
[314623911,1708463435733,-150.39,0.00042192,2]
[314623912,1708463435742,-314.55,0.00042205,2]
[314623913,1708463435751,-153.77,0.00042284,2]
[314623914,1708463435761,-206.0,0.00042439,19]
[314623915,1708463435770,-150.0,0.00042448,2]
[314623916,1708463435780,-152.59094759,0.00042546,16]
[314623917,1708463435789,-150.0,0.00042549,2]
[314623918,1708463435799,-7605.59782445,0.00042567,4]
[314623919,1708463435809,-1240.42500002,0.00042571,2]
[314623920,1708463435818,-150.0,0.000426,2]
[314623921,1708463435828,-1000.0,0.00042625,2]
[314623922,1708463435838,-150.0,0.0004267,2]
[314623923,1708463435847,-1044.45,0.000427,7]
[314623924,1708463435857,-1247.68,0.000427,7]
[314623925,1708463435866,-150.0,0.00042707,2]
[314623926,1708463435875,-17979.65665844,0.00042752,4]
[314623927,1708463435885,-150.0,0.00042846,2]
[314623928,1708463435895,-1000.0,0.000429,7]
[314623929,1708463435904,-1000.0,0.000429,7]
[314623930,1708463435914,-1000.0,0.000429,7]
[314623931,1708463435923,-1000.0,0.000429,7]
[314623932,1708463435932,-1000.0,0.000429,7]
[314623933,1708463435942,-1000.0,0.000429,7]
[314623934,1708463435951,-1000.0,0.000429,7]
[314623935,1708463435961,-1000.0,0.000429,7]
[314623936,1708463435971,-1000.0,0.000429,7]
[314623937,1708463435980,-1000.0,0.000429,7]
[314623938,1708463435990,-1000.0,0.000429,7]
[314623939,1708463435999,-1000.0,0.000429,7]
[314623940,1708463436009,-1000.0,0.000429,7]
[314623941,1708463436019,-1000.0,0.000429,7]
[314623942,1708463436029,-1000.0,0.000429,7]
[314623943,1708463436050,-1000.0,0.000429,7]
[314623944,1708463436059,-1000.0,0.000429,7]
[314623945,1708463436069,-1000.0,0.000429,7]
[314623946,1708463436078,-1000.0,0.000429,7]
[314623947,1708463436088,-1000.0,0.000429,7]
[314623948,1708463436098,-1000.0,0.000429,7]
[314623949,1708463436107,-878.0,0.000429,7]
[314623950,1708463436117,-1198.89,0.000429,4]
[314623951,1708463436126,-1198.89,0.000429,4]
[314623952,1708463436136,-1198.89,0.000429,4]
[314623953,1708463436145,-1198.89,0.000429,4]
[314623954,1708463436154,-1198.89,0.000429,4]
[314623955,1708463436164,-1198.89,0.000429,4]
[314623956,1708463436173,-1198.89,0.000429,4]
[314623957,1708463436182,-1198.89,0.000429,4]
[314623958,1708463436194,-1198.89,0.000429,4]
[314623959,1708463436203,-1198.89,0.000429,4]
[314623960,1708463436213,-1198.89,0.000429,4]
[314623961,1708463436223,-1198.89,0.000429,4]
[314623962,1708463436233,-1198.89,0.000429,4]
[314623963,1708463436242,-1198.89,0.000429,4]
[314623964,1708463436253,-1198.89,0.000429,4]
[314623965,1708463436263,-1198.89,0.000429,4]
[314623966,1708463436274,-1198.89,0.000429,4]
[314623967,1708463436284,-1198.89,0.000429,4]
[314623968,1708463436294,-1198.89,0.000429,4]
[314623969,1708463436305,-1198.89,0.000429,4]
[314623970,1708463436314,-153.2,0.000429,4]
[314623971,1708463436324,-153.2,0.000429,4]
[314623972,1708463436334,-153.77,0.00042955,2]
[314623973,1708463436343,-169.0,0.00043,90]
[314623974,1708463436353,-152.0,0.00043192,7]
[314623975,1708463436362,-1338.6782033,0.00043254,2]
[314623976,1708463436372,-2000.0,0.000433,2]
[314623977,1708463436382,-151.64268499,0.0004335,2]
[314623978,1708463436392,-675.16654388,0.0004335,2]
[314623979,1708463436402,-771.09637026,0.0004335,2]
[314623980,1708463436411,-561.47263005,0.0004343,2]
[314623981,1708463436420,-1338.6782033,0.0004346,2]
[314623982,1708463436430,-152.59094759,0.00043483,19]
[314623983,1708463436440,-420.44,0.00043502,2]
[314623984,1708463436449,-1327.74911207,0.00043564,2]
[314623985,1708463436458,-153.77,0.00043626,2]
[314623986,1708463436468,-314.55,0.00043677,2]
[314623987,1708463436477,-765.18737478,0.00043738,2]
[314623988,1708463436487,-152.0,0.0004374,7]
[314623989,1708463436496,-2000.0,0.000438,2]
[314623990,1708463436506,-1338.6782033,0.00043809,2]
[314623991,1708463436515,-255.0,0.00043949,12]
[314623992,1708463436525,-255.0,0.00043949,12]
[314623993,1708463436534,-1327.74911207,0.0004397,2]
[314623994,1708463436543,-444.41758854,0.0004397,37]
[314623995,1708463436552,-531.05350349,0.0004397,2]
[314623996,1708463436562,-1338.6782033,0.00043974,2]
[314623997,1708463436571,-2070385.45319298,0.00043984,4]
[314624002,1708463438173,-703.06376497,0.00030891,2]
[314624003,1708463438231,-133.98623503,0.00030891,2]
[314624004,1708463438240,-154.27,0.00033055,2]
[314624005,1708463438250,-154.27,0.00033151,2]
[314624006,1708463438260,-837.05,0.00033155,2]
[314624007,1708463438270,-154.27,0.00033246,2]
[314624008,1708463438279,-154.27,0.00033342,2]
[314624009,1708463438288,-154.27,0.00033438,2]
[314624010,1708463438297,-154.27,0.00033533,2]
[314624011,1708463438309,-150.0,0.00033606,2]
[314624012,1708463438318,-154.27,0.00033629,2]
[314624013,1708463438327,-154.27,0.00033725,2]
[314624014,1708463438336,-154.27,0.0003382,2]
[314624015,1708463438345,-154.27,0.00033916,2]
[314624016,1708463438355,-154.27,0.00034012,2]
[314624017,1708463438364,-154.27,0.00034108,2]
[314624018,1708463438373,-154.27,0.00034203,2]
[314624019,1708463438384,-203.0,0.00034634,2]
[314624020,1708463438393,-837.05,0.00035419,2]
[314624021,1708463438402,-159.10941982,0.00037683,2]
[314624022,1708463439186,-154.27,0.00034299,2]
[314624023,1708463439196,-154.27,0.00034395,2]
[314624024,1708463439206,-154.27,0.0003449,2]
[314624025,1708463439216,-154.27,0.00034586,2]
[314624026,1708463439226,-308.22673529,0.00037683,2]
[314624027,1708463439238,-369.71384489,0.00037683,2]
[314624028,1708463439248,-825.72541105,0.000388,2]
[314624029,1708463439306,-167.42946005,0.000388,2]
[314624030,1708463439317,-837.05,0.00039947,2]
[314624031,1708463439326,-34483.95,0.00039999,2]
[314624032,1708463439336,-42147.05,0.00039999,2]
[314624033,1708463439345,-403.23887104,0.0004,2]
[314624034,1708463439354,-403.23887104,0.0004,2]
[314624035,1708463439363,-403.23887104,0.0004,2]
[314624036,1708463439372,-403.23887104,0.0004,2]
[314624037,1708463439381,-403.23887104,0.0004,2]
[314624038,1708463439390,-403.23887104,0.0004,2]
[314624039,1708463439400,-403.23887104,0.0004,2]
[314624040,1708463439409,-403.23887104,0.0004,2]
[314624041,1708463439418,-403.23887104,0.0004,2]
[314624042,1708463439427,-403.23887104,0.0004,2]
[314624043,1708463439437,-403.23887104,0.0004,2]
[314624044,1708463439446,-403.23887104,0.0004,2]
[314624045,1708463439455,-403.23887104,0.0004,2]
[314624046,1708463439464,-403.23887104,0.0004,2]
[314624047,1708463439474,-403.23887104,0.0004,2]
[314624048,1708463439484,-403.23887104,0.0004,2]
[314624049,1708463439493,-403.23887104,0.0004,2]
[314624050,1708463439503,-403.23887104,0.0004,2]
[314624051,1708463439511,-403.23887104,0.0004,2]
[314624052,1708463439520,-403.23887104,0.0004,2]
[314624053,1708463439529,-403.23887104,0.0004,2]
[314624054,1708463439538,-403.23887104,0.0004,2]
[314624055,1708463439547,-403.23887104,0.0004,2]
[314624056,1708463439556,-403.23887104,0.0004,2]
[314624057,1708463439565,-403.23887104,0.0004,2]
[314624058,1708463439574,-403.23887104,0.0004,2]
[314624059,1708463439582,-403.23887104,0.0004,2]
[314624060,1708463439591,-403.23887104,0.0004,2]
[314624061,1708463439600,-403.23887104,0.0004,2]
[314624062,1708463439609,-403.23887104,0.0004,2]
[314624063,1708463439618,-403.23887104,0.0004,2]
[314624064,1708463439628,-403.23887104,0.0004,2]
[314624065,1708463439636,-403.23887104,0.0004,2]
[314624066,1708463439645,-837.05,0.0004221,2]
[314624067,1708463439654,-1337.59481652,0.00043474,2]
[314624068,1708463439663,-993.15487109,0.00043474,2]
[314624069,1708463439672,-2261143.26786721,0.00043984,4]
[314624070,1708463439680,-1350.19,0.00044035,120]
[314624071,1708463439689,-150.0,0.00044043,2]
[314624072,1708463439698,-4889.05117353,0.00044067,2]
[314624073,1708463439707,-1988762.45850497,0.0004407,4]
[314624074,1708463439716,-1698.71395556,0.0004407,19]
[314624075,1708463439724,-245000.0,0.0004407,2]
[314624076,1708463439734,-150.0,0.00044099,2]
[314624077,1708463439743,-150.0,0.000441,2]
[314624078,1708463439753,-150.0,0.00044114,2]
[314624079,1708463439762,-150.0,0.00044116,2]
[314624080,1708463439771,-150.0,0.00044118,2]
[314624081,1708463439780,-150.0,0.00044119,2]
[314624082,1708463439789,-150.0,0.00044127,2]
[314624083,1708463439797,-150.0,0.00044128,2]
[314624084,1708463439807,-150.0,0.00044138,2]
[314624085,1708463439816,-150.0,0.00044141,2]
[314624086,1708463439825,-150.0,0.00044142,2]
[314624087,1708463439833,-150.0,0.00044147,2]
[314624088,1708463439842,-4067.7508783,0.00044156,2]
[314624089,1708463439851,-3839.4624433,0.00044157,2]
[314624090,1708463439860,-117949.767037,0.00044157,2]
[314624091,1708463439870,-162.38833905,0.00044169,2]
[314624092,1708463439879,-4979.89112243,0.00044169,2]
[314624093,1708463439888,-5973.31985429,0.00044169,30]
[314624094,1708463439897,-3000.0,0.0004417,22]
[314624095,1708463439907,-6457.17049499,0.0004417,2]
[314624096,1708463439917,-5992.5,0.00044178,2]
[314624097,1708463439927,-150.0,0.0004418,2]
[314624098,1708463439937,-150.0,0.00044186,2]
[314624099,1708463439947,-300.0,0.00044192,2]
[314624100,1708463439956,-150.0,0.00044213,2]
[314624101,1708463439966,-150.0,0.00044222,2]
[314624102,1708463439976,-200.0,0.00044223,20]
[314624103,1708463439985,-800.0,0.00044223,20]
[314624104,1708463439995,-150.0,0.00044249,2]
[314624105,1708463440006,-938.52736995,0.00044283,2]
[314624106,1708463440015,-150.0,0.00044286,2]
[314624107,1708463440025,-152.0,0.00044288,7]
[314624108,1708463440034,-153.77,0.00044298,2]
[314624109,1708463440043,-150.0,0.00044298,2]
[314624110,1708463440052,-150.0,0.00044305,2]
[314624112,1708463440061,-300.0,0.00044307,2]
[314624113,1708463440071,-150.0,0.0004431,2]
[314624114,1708463440080,-154.43,0.00044318,2]
[314624115,1708463440089,-150.0,0.00044323,2]
[314624116,1708463440099,-150.0,0.00044324,4]
[314624117,1708463440108,-150.0,0.00044324,4]
[314624118,1708463440118,-150.0,0.00044324,4]
[314624119,1708463440127,-150.0,0.00044324,4]
[314624120,1708463440136,-291176.23750752,0.00044325,2]
[314624121,1708463440288,-403.23887104,0.0004,2]
[314624122,1708463440297,-573.77939689,0.00044325,2]
[314624123,1708463440321,-1.23344862,0.00044325,2]
[314624124,1708463440332,-738.50865237,0.00044325,2]
[314624125,1708463440343,-26190.44997439,0.00044325,2]
[314624126,1708463440355,-361.28072426,0.00044325,2]
[314624127,1708463440380,-154.27,0.00034682,2]
[314624128,1708463440389,-239720.3756252,0.00044325,2]
[314624129,1708463440401,-55385.97703451,0.00044325,2]
[314624130,1708463440412,-13029.51094344,0.00044325,2]
[314624131,1708463440422,-1706.89836705,0.00044325,2]
[314624147,1708463440847,-154.27,0.00034777,2]
[314624150,1708463440856,-403.23887104,0.0004,2]
[314624152,1708463440866,-403.23887104,0.0004,2]
[314624153,1708463440875,-403.23887104,0.0004,2]
[314624155,1708463440885,-403.23887104,0.0004,2]
[314624157,1708463440895,-403.23887104,0.0004,2]
[314624158,1708463440906,-403.23887104,0.0004,2]
[314624159,1708463440915,-45.92557375,0.0004,2]
[314624161,1708463440927,-357.31329729,0.0004,2]
[314624163,1708463440936,-403.23887104,0.0004,2]
[314624165,1708463440945,-403.23887104,0.0004,2]
[314624167,1708463440953,-3493.98330303,0.00044325,2]
[314624169,1708463440966,-792.17859863,0.00044325,2]
[314624171,1708463440978,-8759.3820718,0.00044325,2]
[314624173,1708463441688,-165.0,0.00044,90]
[314624174,1708463441697,-5271.97053577,0.00044325,2]
[314624175,1708463441709,-20057.50631289,0.00044325,2]
[314624176,1708463441720,-8847.51030805,0.00044325,2]
[314624177,1708463441732,-8078.41367979,0.00044325,2]
[314624178,1708463441747,-315.24,0.00044169,2]
[314624179,1708463441758,-2065.12051418,0.00044169,2]
[314624184,1708463443307,-2283.0606946,0.00044169,2]
[314624185,1708463443320,-316.46991365,0.00044169,2]
[314624186,1708463443330,-5376.43502808,0.00044325,2]
[314624187,1708463443342,-8636.48706641,0.00044325,2]
[314624188,1708463443359,-3093.04583154,0.00044325,2]
[314624189,1708463443372,-17587.72866048,0.00044325,2]
[314624190,1708463443385,-23483.16554792,0.00044325,2]
[314624191,1708463443401,-390.16167652,0.00044325,2]
[314624192,1708463443413,-464.9119998,0.00044325,2]
[314624193,1708463443437,-622.56932309,0.00043984,2]
[314624194,1708463443449,-1609.66046935,0.00043984,2]
[314624195,1708463443461,-1704.14634174,0.00043984,2]
[314624196,1708463443495,-975.15003434,0.00043984,2]
[314624197,1708463443508,-394.96999999,0.00043984,2]
[314624198,1708463443551,-263.95605343,0.00043984,2]
[314624199,1708463443620,-624.62488947,0.00043984,2]
[314624200,1708463443630,-6195.07711141,0.00044325,2]
[314624201,1708463443639,-153727.81975281,0.00044325,2]
[314624213,1708463446769,-580.018821,0.0003452,2]
[314624214,1708463446779,-557.49417398,0.00039999,2]
[314624215,1708463446789,-4303.7498444,0.00043935,2]
[314624216,1708463446799,-317.39744909,0.00044229,2]
[314624217,1708463446808,-156.21,0.00044315,10]
[314624218,1708463446817,-4489.72971153,0.00044325,2]
[314624219,1708463446891,-157.25652357,0.00044324,2]
[314624220,1708463446901,-1061110.07698693,0.00044325,2]
[314624221,1708463446910,-150.0,0.00044329,2]
[314624222,1708463446920,-362.06,0.00044338,10]
[314624223,1708463446930,-151.022178,0.00044348,43]
[314624224,1708463446940,-150.0,0.00044364,2]
[314624225,1708463446950,-5598.0,0.00044384,2]
[314624226,1708463446959,-8174.0,0.00044384,2]
[314624227,1708463446969,-2931.0,0.00044384,2]
[314624228,1708463446978,-42635.0,0.00044384,2]
[314624229,1708463446988,-7427.0,0.00044384,2]
[314624230,1708463446997,-2292.0,0.00044384,2]
[314624231,1708463447008,-4103.0,0.00044384,2]
[314624232,1708463447017,-19872.0,0.00044384,2]
[314624233,1708463447027,-208.036,0.00044384,2]
[314624234,1708463447036,-1038.0,0.00044384,2]
[314624235,1708463447046,-206.0,0.0004439,24]
[314624236,1708463447055,-150.0,0.00044408,2]
[314624262,1708463447290,-152.59094759,0.0004442,23]
[314624265,1708463447310,-150.0,0.00044433,2]
[314624267,1708463447320,-150.0,0.00044434,2]
[314624270,1708463447334,-1698.71395554,0.00044435,19]
[314624271,1708463447344,-150.0,0.00044452,2]
[314624274,1708463447353,-150.0,0.00044458,2]
[314624275,1708463447364,-150.0,0.00044458,2]
[314624277,1708463447373,-837.05,0.00044474,2]
[314624279,1708463447383,-150.0,0.00044484,2]
[314624282,1708463447393,-300.0,0.0004451,2]
[314624283,1708463447402,-281.0,0.00044511,2]
[314624285,1708463447412,-150.0,0.00044516,2]
[314624288,1708463447422,-17979.65665844,0.00044539,6]
[314624290,1708463447432,-151.022178,0.00044548,43]
[314624291,1708463447442,-150.0,0.00044553,2]
[314624294,1708463447452,-1327.74911207,0.00044557,2]
[314624296,1708463447462,-1338.6782033,0.00044564,2]
[314624298,1708463447471,-1500.0,0.00044568,2]
[314624299,1708463447481,-150.0,0.00044568,2]
[314624301,1708463447490,-150.0,0.00044569,2]
[314624303,1708463447499,-150.0,0.00044595,2]
[314624305,1708463447510,-150.0,0.00044607,2]
[314624307,1708463447519,-150.0,0.00044661,2]
[314624309,1708463447529,-150.0,0.00044663,2]
[314624311,1708463447539,-213.81836347,0.00044668,2]
[314624313,1708463447548,-5003.24005898,0.00044668,7]
[314624315,1708463447558,-2252.72679166,0.00044668,6]
[314624317,1708463447567,-173.5952106,0.00044668,4]
[314624319,1708463447577,-4489.97242046,0.00044668,8]
[314624321,1708463447587,-1000.0,0.00044668,30]
[314624323,1708463447597,-2233.30543494,0.00044668,5]
[314624325,1708463447607,-1000.0,0.00044668,30]
[314624328,1708463447620,-1654.63209107,0.00044668,8]
[314624330,1708463447630,-437.91881867,0.00044668,5]
[314624331,1708463447640,-289.63969271,0.00044668,2]
[314624333,1708463447650,-1821.53879042,0.00044668,5]
[314624335,1708463447660,-535.28075974,0.00044668,5]
[314624337,1708463447670,-842.11984962,0.00044668,5]
[314624339,1708463447679,-355.2777499,0.00044668,5]
[314624341,1708463447689,-150.0,0.00044675,2]
[314624343,1708463447700,-1338.6782033,0.00044676,2]
[314624345,1708463447710,-186.83697916,0.00044685,2]
[314624347,1708463447719,-150.0,0.00044686,2]
[314624349,1708463447728,-1057.66358493,0.00044687,5]
[314624351,1708463447737,-150.0,0.00044689,2]
[314624353,1708463447748,-150.0,0.00044704,2]
[314624355,1708463447759,-1500.0,0.00044722,2]
[314624357,1708463447767,-1500.0,0.00044736,2]
[314624359,1708463447777,-150.0,0.00044739,2]
[314624361,1708463447787,-150.0,0.00044742,2]
[314624363,1708463447796,-151.022178,0.00044748,43]
[314624365,1708463447806,-150.0,0.0004475,2]
[314624367,1708463447815,-150.0,0.00044752,2]
[314624369,1708463447825,-150.0,0.00044758,2]
[314624371,1708463447834,-3000.0,0.0004476,24]
[314624373,1708463447845,-150.0,0.00044761,2]
[314624375,1708463447854,-1000.0,0.00044764,2]
[314624377,1708463447863,-1000.0,0.00044764,2]
[314624379,1708463447873,-1000.0,0.00044764,2]
[314624381,1708463447882,-1000.0,0.00044764,2]
[314624383,1708463447891,-1000.0,0.00044764,2]
[314624385,1708463447901,-1000.0,0.00044764,2]
[314624387,1708463447910,-1000.0,0.00044764,2]
[314624389,1708463447919,-1000.0,0.00044764,2]
[314624391,1708463447928,-1000.0,0.00044764,2]
[314624393,1708463447938,-1000.0,0.00044764,2]
[314624395,1708463447947,-1000.0,0.00044764,2]
[314624397,1708463447957,-1000.0,0.00044764,2]
[314624399,1708463447966,-1000.0,0.00044764,2]
[314624401,1708463447975,-1000.0,0.00044764,2]
[314624403,1708463447985,-1000.0,0.00044764,2]
[314624405,1708463447994,-1000.0,0.00044764,2]
[314624407,1708463448004,-1000.0,0.00044764,2]
[314624409,1708463448013,-1000.0,0.00044764,2]
[314624411,1708463448022,-1000.0,0.00044764,2]
[314624413,1708463448032,-1000.0,0.00044764,2]
[314624415,1708463448041,-1000.0,0.00044764,2]
[314624417,1708463448051,-150.0,0.00044769,2]
[314624418,1708463448061,-150.0,0.00044782,2]
[314624419,1708463448070,-150.0,0.0004479,2]
[314624420,1708463448079,-150.0,0.00044795,2]
[314624421,1708463448088,-150.0,0.00044797,2]
[314624422,1708463448097,-150.0,0.00044798,2]
[314624423,1708463448106,-150.0,0.00044799,2]
[314624424,1708463448114,-1698.71395554,0.00044801,20]
[314624425,1708463448123,-150.0,0.00044803,2]
[314624426,1708463448132,-150.0,0.00044818,2]
[314624427,1708463448141,-150.0,0.00044821,2]
[314624428,1708463448150,-1500.0,0.00044829,2]
[314624429,1708463448159,-152.0,0.00044836,7]
[314624430,1708463448168,-150.0,0.00044841,2]
[314624431,1708463448177,-5000.0,0.00044853,4]
[314624432,1708463448186,-169.0,0.00044877,90]
[314624433,1708463448195,-150.0,0.00044878,2]
[314624434,1708463448204,-200.0,0.000449,19]
[314624435,1708463448214,-500.0,0.000449,14]
[314624436,1708463448223,-500.0,0.000449,22]
[314624437,1708463448233,-150.0,0.00044911,2]
[314624438,1708463448242,-1500.0,0.00044915,2]
[314624439,1708463448251,-444.41758853,0.00044923,39]
[314624440,1708463448260,-151.022178,0.00044948,43]
[314624441,1708463448269,-150.0,0.00044953,2]
[314624443,1708463448282,-150.0,0.00044974,2]